Workbook

Sheet ملخص الميزانية
B2: تقرير ملخص الميزانية | I2: =YEAR(TODAY()) -> 2019
B3: اسم الشركة
B4: يتم حساب الخلايا الرمادية لك ويجب ألا يتم تعديلها بشكل عام.
B5: ملخص الأرباح والخسائر | C5: القيم الفعلية لشهر مايو | D5: أهداف شهر مايو | E5: الفروق الشهرية | F5: القيم الفعلية حتى تاريخه | G5: الأهداف حتى تاريخه | H5: الفروق حتى تاريخه | I5: ماحظات
B6: الإيرادات | C6: ر.س.‏ 1,200,000.00 | D6: ر.س.‏ 1,100,000.00 | E6: =C6-D6 -> ر.س.‏ 100,000.00 | F6: ر.س.‏ 6,200,000.00 | G6: ر.س.‏ 6,000,000.00 | H6: =F6-G6 -> ر.س.‏ 200,000.00 | I6: لقد تجاوزنا هدف الإيرادات لشهر مايو بنسبة 9٪، بسبب التنفيذ الأقوى في المنطقة الغربية.
B7: إجمالي هامش الربح | C7: ر.س.‏ 150,000.00 | D7: ر.س.‏ 160,000.00 | E7: =C7-D7 -> ر.س.‏ 10,000.00- | F7: ر.س.‏ 640,000.00 | G7: ر.س.‏ 750,000.00 | H7: =F7-G7 -> ر.س.‏ 110,000.00-
B8: النسبة المئوية لإجمالي هامش الربح | C8: =IF(C6=0,0,C7/C6) -> 12.5% | D8: =IF(D6=0,0,D7/D6) -> 14.5% | E8: =C8-D8 -> -2.0% | F8: =IF(F6=0,0,F7/F6) -> 10.3% | G8: =IF(G6=0,0,G7/G6) -> 12.5% | H8: =F8-G8 -> -2.2%
B9: المبيعات من المنتجات الجديدة | C9: ر.س.‏ 200,000.00 | D9: ر.س.‏ 150,000.00 | E9: =C9-D9 -> ر.س.‏ 50,000.00 | F9: ر.س.‏ 900,000.00 | G9: ر.س.‏ 750,000.00 | H9: =F9-G9 -> ر.س.‏ 150,000.00
B10: شكل تصنيف تفصيلي للمبيعات الإقليمية:
B11: المنطقة الشمالية الشرقية | C11: ر.س.‏ 400,000.00 | D11: ر.س.‏ 400,000.00 | E11: =C11-D11 -> ر.س.‏ 0.00 | F11: ر.س.‏ 2,200,000.00 | G11: ر.س.‏ 2,000,000.00 | H11: =F11-G11 -> ر.س.‏ 200,000.00
B12: المنطقة المركزية | C12: ر.س.‏ 400,000.00 | D12: ر.س.‏ 400,000.00 | E12: =C12-D12 -> ر.س.‏ 0.00 | F12: ر.س.‏ 2,400,000.00 | G12: ر.س.‏ 2,000,000.00 | H12: =F12-G12 -> ر.س.‏ 400,000.00
B13: المنطقة الغربية | C13: ر.س.‏ 400,000.00 | D13: ر.س.‏ 300,000.00 | E13: =C13-D13 -> ر.س.‏ 100,000.00 | F13: ر.س.‏ 1,600,000.00 | G13: ر.س.‏ 2,000,000.00 | H13: =F13-G13 -> ر.س.‏ 400,000.00-
B14: المصاريف والهامش:
B15: مصاريف SG&A | C15: ر.س.‏ 100,000.00 | D15: ر.س.‏ 120,000.00 | E15: =D15-C15 -> ر.س.‏ 20,000.00 | F15: ر.س.‏ 500,000.00 | G15: ر.س.‏ 600,000.00 | H15: =G15-F15 -> ر.س.‏ 100,000.00
B16: أرباح التشغيل ما قبل الضرائب (الخسائر) | C16: ر.س.‏ 50,000.00 | D16: ر.س.‏ 40,000.00 | E16: =C16-D16 -> ر.س.‏ 10,000.00 | F16: ر.س.‏ 140,000.00 | G16: ر.س.‏ 150,000.00 | H16: =F16-G16 -> ر.س.‏ 10,000.00-
B17: هامش التشغيل | C17: =IF(C6=0,0,C16/C6) -> 4% | D17: =IF(D6=0,0,D16/D6) -> 4% | E17: =C17-D17 -> 1% | F17: =IF(F6=0,0,F16/F6) -> 2% | G17: =IF(G6=0,0,G16/G6) -> 3% | H17: =F17-G17 -> -0%
B19: ملخص الميزانية العمومية | C19: القيم الفعلية لشهر مايو | D19: أهداف شهر مايو | E19: الفروق الشهرية | F19: القيم الفعلية حتى تاريخه | G19: الأهداف حتى تاريخه | H19: الفروق حتى تاريخه | I19: ماحظات
B20: التدفقات النقدية في نهاية الفترة | C20: ر.س.‏ 35,000.00 | D20: ر.س.‏ 50,000.00 | E20: =C20-D20 -> ر.س.‏ 15,000.00- | F20: ر.س.‏ 35,000.00 | G20: ر.س.‏ 50,000.00 | H20: =F20-G20 -> ر.س.‏ 15,000.00- | I20: يُعزى تباين التدفقات النقدية إلى تسوية نقدية للنزاع القانوني مع اسم الشركة في 8 مايو.
B21: الحسابات المدينة | C21: ر.س.‏ 20,000.00 | D21: ر.س.‏ 22,000.00 | E21: ر.س.‏ 2,000.00- | F21: ر.س.‏ 20,000.00 | G21: ر.س.‏ 22,000.00 | H21: ر.س.‏ 2,000.00-
B22: المخزون | C22: ر.س.‏ 25,000.00 | D22: ر.س.‏ 30,000.00 | E22: ر.س.‏ 5,000.00- | F22: ر.س.‏ 25,000.00 | G22: ر.س.‏ 30,000.00 | H22: ر.س.‏ 5,000.00-
B23: إجمالي الأصول السائلة | C23: ر.س.‏ 75,000.00 | D23: ر.س.‏ 90,000.00 | E23: ر.س.‏ 15,000.00- | F23: ر.س.‏ 75,000.00 | G23: ر.س.‏ 90,000.00 | H23: ر.س.‏ 15,000.00-
B24: الأصول المطلوبة بموجب عهود الديون | C24: ر.س.‏ 25,000.00 | D24: ر.س.‏ 25,000.00 | E24: ر.س.‏ 0.00 | F24: ر.س.‏ 25,000.00 | G24: ر.س.‏ 25,000.00 | H24: ر.س.‏ 0.00
B25: احتياطي عهود الديون | C25: =C23-C24 -> ر.س.‏ 50,000.00 | D25: =D23-D24 -> ر.س.‏ 65,000.00 | E25: ر.س.‏ 15,000.00- | F25: =F23-F24 -> ر.س.‏ 50,000.00 | G25: =G23-G24 -> ر.س.‏ 65,000.00 | H25: ر.س.‏ 15,000.00-
B26: بنود الميزانية العمومية الأخرى:
B27: الممتلكات والمصانع والمعدات | C27: ر.س.‏ 80,000.00 | D27: ر.س.‏ 78,000.00 | E27: =C27-D27 -> ر.س.‏ 2,000.00 | F27: ر.س.‏ 80,000.00 | G27: ر.س.‏ 78,000.00 | H27: =F27-G27 -> ر.س.‏ 2,000.00 | I27: يُعزى التباين إلى شراء آلة انفجار جديدة في المصنع B.
B28: حسابات دائنة | C28: ر.س.‏ 60,000.00 | D28: ر.س.‏ 60,000.00 | E28: =D28-C28 -> ر.س.‏ 0.00 | F28: ر.س.‏ 60,000.00 | G28: ر.س.‏ 60,000.00 | H28: =F28-G28 -> ر.س.‏ 0.00
B29: الالتزامات طويلة الأمد | C29: ر.س.‏ 30,000.00 | D29: ر.س.‏ 31,000.00 | E29: =D29-C29 -> ر.س.‏ 1,000.00 | F29: ر.س.‏ 30,000.00 | G29: ر.س.‏ 31,000.00 | H29: =G29-F29 -> ر.س.‏ 1,000.00
B30: حق ملكية المساهمين | C30: ر.س.‏ 300,000.00 | D30: ر.س.‏ 297,500.00 | E30: =C30-D30 -> ر.س.‏ 2,500.00 | F30: ر.س.‏ 300,000.00 | G30: ر.س.‏ 297,500.00 | H30: =F30-G30 -> ر.س.‏ 2,500.00
B32: ملخص مقاييس التشغيل | C32: القيم الفعلية لشهر مايو | D32: أهداف شهر مايو | E32: الفروق الشهرية | F32: القيم الفعلية حتى تاريخه | G32: الأهداف حتى تاريخه | H32: الفروق حتى تاريخه | I32: ماحظات
B33: عدد العيوب الناتجة لكل 1000 عنصر واجهة مستخدم | C33: 2.3 | D33: 1.0 | E33: =D33-C33 -> 1.3 | F33: 1.5 | G33: 1.0 | H33: =F33-G33 -> 0.5 | I33: حدثت مشكلات الجودة من الطلاء غير الصحيح الذي تم تطبيقه على المنتجات. السطر 3؛ نفذ المدير ضوابط كشفية جديدة.
B34: السعة الإنتاجية-الوحدات لكل شهر | C34: 200,000 | D34: 220,000 | E34: =C34-D34 -> 20,000 | F34: 1,100,000 | G34: 1,150,000 | H34: =F34-G34 -> 50,000
B35: أيام المبيعات المميزة | C35: 35 | D35: 25 | E35: =D35-C35 -> 10 | F35: 33 | G35: 25 | H35: =G35-F35 -> 8
B36: عدد الطلبات الجديدة | C36: 19 | D36: 15 | E36: =C36-D36 -> 4 | F36: 83 | G36: 75 | H36: =F36-G36 -> 8
B38: الملخص التنافسي | C38: ملف تعريف شركتك | D38: المنافس 1 | E38: المنافس 2 | F38: المنافس 3 | G38: المنافس 4 | H38: غير ذلك | I38: ماحظات
B39: حصة السوق | C39: 20.00% | D39: 25.00% | E39: 15.00% | F39: 5.00% | G39: 15.00% | H39: 20.00% | I39: زادت حصة السوق بسبب قوة مبيعات المنتجات الجديدة.
B40: الإيرادات (حتى تاريخه) | C40: =F6 -> ر.س.‏ 6,200,000.00 | D40: ر.س.‏ 7,000,000.00 | E40: ر.س.‏ 4,000,000.00 | F40: ر.س.‏ 1,500,000.00 | G40: ر.س.‏ 4,000,000.00 | H40: ر.س.‏ 6,000,000.00
B41: مقدمات المنتج الجديد (حتى تاريخه) | C41: ر.س.‏ 900,000.00 | D41: ر.س.‏ 500,000.00 | E41: ر.س.‏ 0.00 | F41: ر.س.‏ 100,000.00 | G41: ر.س.‏ 500,000.00 | H41: ر.س.‏ 0.00
B42: عدد مندوبي المبيعات في الميدان (تقديري) | C42: 15 | D42: 20 | E42: 15 | F42: 10 | G42: 15 | H42: N/A

Sheet مخطط الأرباح والخسائر
B2: مخطط ملخص الأرباح والخسائر | I2: ='ملخص الميزانية'!I2 -> 2019
B3: ='ملخص الميزانية'!B3 -> اسم الشركة
B5: يوجد مخطط شريطي يعرض الأرقام الفعلية والأهداف الخاصة بالشهر والسنة في هذه الخلية.

Sheet مخطط الرصيد
B2: مخطط ملخص الميزانية العمومية | I2: ='ملخص الميزانية'!I2 -> 2019
B3: ='ملخص الميزانية'!B3 -> اسم الشركة
B5: يوجد مخطط شريطي يعرض الأرقام الفعلية والأهداف الشهرية في هذه الخلية.
